[Event "Czech Youth U14 Girls 2024"]
[Site "Kouty nad Desnou"]
[Date "2024.03.11"]
[Round "4.1"]
[White "Kozusnikova, Daniela"]
[Black "Horkova, Tereza"]
[Result "1-0"]
[ECO "D02"]
[WhiteElo "1809"]
[BlackElo "1845"]
[Annotator "NA RC"]
[PlyCount "77"]
[EventDate "2024.03.10"]
[EventType "swiss"]
[EventCountry "CZE"]
[SourceTitle "playchess.com"]
[Source "ChessBase"]
[SourceQuality "1"]
[TimeControl "40/5400+30:1800+30"]

1. d4 {[%emt 0:00:07]} d5 {[%emt 0:00:08]} 2. Nf3 {[%emt 0:00:09]} c6 {[%emt 0:00:20]} 3. Bg5 {[%emt 0:00:56]} Nf6 {[%emt 0:00:30]} 4. Bxf6 {[%emt 0:05:10]} exf6 {[%emt 0:01:52]} 5. Nbd2 {[%emt 0:00:39]} Bd6 {[%emt 0:01:47]} 6. e3 {[%emt 0:00:39] D03: Damenbauernspiele.} O-O {[%emt 0:01:28]} 7. Be2 {[%emt 0:00:42]} Re8 {[%emt 0:03:00]} 8. O-O {[%emt 0:00:51]} f5 {[%emt 0:03:56]} 9. Bd3 {[%emt 0:07:18]} g5 {[%emt 0:10:51]} 10. Nb3 {[%emt 0:09:41]} g4 {[%emt 0:02:48]} 11. Nfd2 {[%emt 0:01:34]} Qh4 {[%emt 0:01:30]} 12. g3 {[%emt 0:00:42]} Qg5 {[%emt 0:04:05]} 13. Re1 {[%emt 0:01:43]} h5 {[%emt 0:05:19]} 14. c3 {[%emt 0:11:51]} Kg7 {[%emt 0:03:16]} 15. Qc2 {[%emt 0:03:17]} h4 {[%emt 0:02:31]} 16. Kg2 {[%emt 0:04:14]} (16. f4 $1 $11 Qh5 17. gxh4) 16... Be6 {[%emt 0:10:37]} (16... Rh8 $142 17. c4 Be6) 17. Nc1 {[%emt 0:07:15]} Nd7 {[%emt 0:00:57]} 18. Ne2 {[%emt 0:01:02]} Rh8 {[%emt 0:06:22]} 19. Nf4 {[%emt 0:05:40]} Rh6 {[%emt 0:04:36]} 20. Kf1 {[%emt 0:10:46]} hxg3 {[%emt 0:03:19]} 21. hxg3 {[%emt 0:00:20]} Nf6 {[%emt 0:03:49]} 22. Ke2 {[%emt 0:05:54]} Ne4 {[%emt 0:01:14]} 23. Rh1 {[%emt 0:03:10]} Rah8 {[%emt 0:01:19]} 24. Rxh6 {[%emt 0:01:00]} Rxh6 {[%emt 0:00:58]} 25. Rf1 {[%emt 0:01:01]} Rh2 {[%emt 0:01:46]} 26. Ke1 {[%emt 0:01:45]} Qh6 {[%emt 0:05:35]} 27. Bxe4 {[%emt 0:06:36]} fxe4 {[%emt 0:00:32]} 28. Rg1 {[%emt 0:03:24]} Rh1 {[%emt 0:07:34]} 29. Nxe6+ {[%emt 0:03:24]} fxe6 {[%emt 0:00:29]} 30. Rxh1 {[%emt 0:01:07]} Qxh1+ {[%emt 0:00:03]} 31. Nf1 $11 {[%emt 0:00:48]} Qf3 {[%emt 0:02:41]} 32. Qa4 {[%emt 0:00:28]} a6 {[%emt 0:01:49]} 33. Qa5 {[%emt 0:00:50]} Qf7 {[%emt 0:01:07]} 34. Qd8 {[%emt 0:01:18]} Kg6 {[%emt 0:01:00]} 35. Qxd6 {[%emt 0:00:43]} a5 {[%emt 0:00:55]} 36. Qf4 {[%emt 0:01:14]} Qxf4 {[%emt 0:01:15]} 37. gxf4 {[%emt 0:00:16]} Kh5 {[%emt 0:00:14]} 38. Nd2 {[%emt 0:00:49]} a4 {[%emt 0:00:12]} 39. Kf1 {[%emt 0:00:26]} 1-0

[Event "Czech Youth U14 Girls 2024"]
[Site "Kouty nad Desnou"]
[Date "2024.03.11"]
[Round "4.2"]
[White "Slivova, Linda"]
[Black "Kammova, Katerina"]
[Result "1/2-1/2"]
[ECO "A45"]
[WhiteElo "1824"]
[BlackElo "1781"]
[Annotator "NA RC"]
[PlyCount "72"]
[EventDate "2024.03.10"]
[EventType "swiss"]
[EventCountry "CZE"]
[SourceTitle "playchess.com"]
[Source "ChessBase"]
[SourceQuality "1"]
[TimeControl "40/5400+30:1800+30"]

1. d4 {[%emt 0:00:03]} Nf6 {[%emt 0:00:27]} 2. e3 {[%emt 0:00:14]} e6 {[%emt 0:04:46]} 3. Bd3 {[%emt 0:01:04]} d5 {[%emt 0:01:39]} 4. f4 {[%emt 0:01:26]} b6 {[%emt 0:04:27]} 5. Nf3 {[%emt 0:00:48]} c6 {[%emt 0:02:23]} 6. Nbd2 {[%emt 0:04:41] D00: 1 d4 d5: Unusual lines.} Ba6 {[%emt 0:07:38]} 7. Bxa6 {[%emt 0:04:57]} Nxa6 {[%emt 0:00:18]} 8. Ne5 {[%emt 0:00:48]} Rc8 {[%emt 0:02:47]} 9. O-O {[%emt 0:02:21]} Be7 {[%emt 0:02:09]} 10. b3 {[%emt 0:01:00]} O-O {[%emt 0:03:31]} 11. Bb2 {[%emt 0:01:24]} Nb8 {[%emt 0:01:51]} 12. Qf3 {[%emt 0:06:09]} Nbd7 {[%emt 0:03:13]} 13. e4 {[%emt 0:09:02]} dxe4 {[%emt 0:10:59]} 14. Nxe4 {[%emt 0:00:16]} Nxe4 {[%emt 0:01:05]} 15. Qxe4 {[%emt 0:00:20]} Nf6 {[%emt 0:01:22]} 16. Qf3 {[%emt 0:05:04]} Qd5 {[%emt 0:07:53]} 17. c4 {[%emt 0:15:44]} Qxf3 {[%emt 0:01:31]} 18. Rxf3 {[%emt 0:00:15]} c5 {[%emt 0:01:12]} 19. dxc5 {[%emt 0:08:27]} Bxc5+ {[%emt 0:01:12]} 20. Kf1 {[%emt 0:00:39]} Rfd8 {[%emt 0:02:02]} 21. Rd3 {[%emt 0:06:11]} Rxd3 {[%emt 0:12:05]} 22. Nxd3 {[%emt 0:00:09]} Bf8 {[%emt 0:01:05]} 23. Ke2 {[%emt 0:13:43]} Rd8 {[%emt 0:04:00]} 24. Ne5 {[%emt 0:06:53]} Ne4 {[%emt 0:03:14]} 25. Rd1 {[%emt 0:00:36]} Rxd1 {[%emt 0:01:13]} 26. Kxd1 {[%emt 0:00:04]} Nc5 {[%emt 0:00:45]} 27. Kc2 {[%emt 0:07:44]} Bd6 {[%emt 0:03:37]} 28. Bc1 {[%emt 0:01:55]} Kf8 {[%emt 0:03:50]} 29. Nd3 {[%emt 0:00:54]} Ke8 {[%emt 0:03:07]} 30. Be3 {[%emt 0:01:19]} Nxd3 {[%emt 0:01:15]} 31. Kxd3 $11 {[%emt 0:00:06]} Kd7 {[%emt 0:00:18]} 32. Kc3 {[%emt 0:01:15]} g6 {[%emt 0:01:48]} 33. h3 {[%emt 0:00:41]} f6 {[%emt 0:05:11]} 34. b4 {[%emt 0:00:19]} Kc6 {[%emt 0:00:29]} 35. a3 {[%emt 0:00:25]} a6 {[%emt 0:02:01]} 36. Kd3 {[%emt 0:00:20]} b5 {[%emt 0:01:10]} 1/2-1/2

[Event "Czech Youth U14 Girls 2024"]
[Site "Kouty nad Desnou"]
[Date "2024.03.11"]
[Round "4.3"]
[White "Barteckova, Valerie"]
[Black "Bartova, Hana"]
[Result "0-1"]
[ECO "A03"]
[WhiteElo "1687"]
[BlackElo "1667"]
[Annotator "NA RC"]
[PlyCount "70"]
[EventDate "2024.03.10"]
[EventType "swiss"]
[EventCountry "CZE"]
[SourceTitle "playchess.com"]
[Source "ChessBase"]
[SourceQuality "1"]
[TimeControl "40/5400+30:1800+30"]

1. f4 {[%emt 0:00:05]} d5 {[%emt 0:02:36]} 2. g3 {[%emt 0:01:24]} c5 {[%emt 0:01:20]} 3. Nf3 {[%emt 0:00:44]} Nc6 {[%emt 0:01:16]} 4. Bg2 {[%emt 0:00:26]} g6 {[%emt 0:01:37]} 5. O-O {[%emt 0:00:48]} Bg7 {[%emt 0:01:30]} 6. d3 {[%emt 0:02:26]} Nf6 {[%emt 0:01:17]} 7. Qe1 {[%emt 0:01:18]} O-O {[%emt 0:02:21]} 8. e4 {[%emt 0:03:18]} dxe4 {[%emt 0:02:25]} 9. dxe4 {[%emt 0:00:09]} Nd4 {[%emt 0:00:48]} 10. Na3 {[%emt 0:04:49]} Nxf3+ {[%emt 0:15:03]} 11. Bxf3 {[%emt 0:03:28]} Bh3 {[%emt 0:00:29]} 12. Rf2 {[%emt 0:14:41]} Ng4 {[%emt 0:03:18]} 13. Rd2 {[%emt 0:03:40]} Qc7 {[%emt 0:15:11]} 14. c3 {[%emt 0:04:06]} Rad8 {[%emt 0:04:57]} 15. Nc4 {[%emt 0:03:14]} b5 {[%emt 0:07:30]} 16. Ne3 {[%emt 0:01:17]} Nxe3 {[%emt 0:00:12]} 17. Qxe3 {[%emt 0:00:08]} Bc8 {[%emt 0:00:10]} 18. Qe2 {[%emt 0:01:53]} Qb6 {[%emt 0:01:57]} 19. Rxd8 {[%emt 0:01:25]} Rxd8 {[%emt 0:00:26]} 20. Be3 {[%emt 0:00:26]} Bb7 {[%emt 0:05:37]} 21. Qf2 {[%emt 0:02:19]} Rc8 {[%emt 0:00:30]} 22. Rd1 {[%emt 0:00:39]} b4 {[%emt 0:05:19]} 23. c4 {[%emt 0:05:47]} b3 {[%emt 0:08:44]} 24. a3 {[%emt 0:05:29]} Qe6 {[%emt 0:01:07]} 25. Bxc5 {[%emt 0:15:58]} Qxc4 {[%emt 0:01:06]} 26. Bxe7 {[%emt 0:08:22]} Bxe4 {[%emt 0:01:38]} 27. Be2 {[%emt 0:14:33]} Qc7 {[%emt 0:00:25]} 28. Bd6 {[%emt 0:00:47]} Qc2 {[%emt 0:00:23]} 29. Be5 {[%emt 0:00:28]} Bxe5 {[%emt 0:01:03]} 30. fxe5 {[%emt 0:00:05]} Qxb2 {[%emt 0:00:50]} 31. Qe3 {[%emt 0:01:07]} Qxe5 {[%emt 0:02:23]} 32. Qxb3 {[%emt 0:00:26]} Bc2 {[%emt 0:00:17]} 33. Qb7 {[%emt 0:00:40]} Rb8 {[%emt 0:00:16]} 34. Rd5 {[%emt 0:00:16]} Qe3+ {[%emt 0:00:13]} 35. Kf1 {[%emt 0:00:16]} Rxb7 {[%emt 0:00:10]} 0-1

[Event "Czech Youth U14 Girls 2024"]
[Site "Kouty nad Desnou"]
[Date "2024.03.11"]
[Round "4.4"]
[White "Nguyen Nhat, Minh Thu"]
[Black "Nova, Doubravka Anezka"]
[Result "0-1"]
[ECO "C01"]
[WhiteElo "1563"]
[BlackElo "1718"]
[Annotator "NA RC"]
[PlyCount "92"]
[EventDate "2024.03.10"]
[EventType "swiss"]
[EventCountry "CZE"]
[SourceTitle "playchess.com"]
[Source "ChessBase"]
[SourceQuality "1"]
[TimeControl "40/5400+30:1800+30"]

1. e4 {[%emt 0:00:03]} e6 {[%emt 0:00:04]} 2. d4 {[%emt 0:00:45]} d5 {[%emt 0:00:05]} 3. exd5 {[%emt 0:02:13]} exd5 {[%emt 0:00:05]} 4. c4 {[%emt 0:02:02]} Nf6 {[%emt 0:00:18]} 5. Nc3 {[%emt 0:03:44]} Bb4 {[%emt 0:00:41]} 6. Bg5 {[%emt 0:03:37]} Be6 {[%emt 0:03:54]} 7. cxd5 {[%emt 0:21:08]} Bxd5 {[%emt 0:01:17]} 8. Qe2+ {[%emt 0:05:10]} Qe7 {[%emt 0:07:26]} 9. Bxf6 {[%emt 0:02:25]} gxf6 {[%emt 0:00:26]} 10. Qxe7+ {[%emt 0:00:25]} Kxe7 {[%emt 0:00:11]} 11. a3 {[%emt 0:02:11]} Bxc3+ {[%emt 0:01:15]} 12. bxc3 {[%emt 0:00:07]} Nd7 {[%emt 0:03:39]} 13. c4 {[%emt 0:07:37]} Be4 {[%emt 0:04:06]} 14. Kd2 {[%emt 0:02:46]} Rhe8 {[%emt 0:02:09]} 15. Ne2 {[%emt 0:02:32]} Nb6 {[%emt 0:02:34]} 16. Nc3 {[%emt 0:03:04]} Bg6 {[%emt 0:01:51]} 17. c5 {[%emt 0:04:26]} Nd7 {[%emt 0:00:57]} 18. Re1+ {[%emt 0:03:05]} Kf8 {[%emt 0:01:04]} 19. Bd3 {[%emt 0:04:17]} Bxd3 {[%emt 0:05:28]} 20. Kxd3 {[%emt 0:01:02]} c6 {[%emt 0:00:49]} 21. Rxe8+ {[%emt 0:04:48]} Rxe8 {[%emt 0:00:23]} 22. Ne4 {[%emt 0:07:22]} b6 {[%emt 0:02:10]} 23. cxb6 {[%emt 0:02:17]} axb6 {[%emt 0:00:33]} 24. Rc1 {[%emt 0:01:36]} Rd8 {[%emt 0:04:09]} 25. Ke3 {[%emt 0:04:15]} Ra8 {[%emt 0:03:47]} 26. Rxc6 {[%emt 0:01:01]} Rxa3+ {[%emt 0:00:24]} 27. Rc3 {[%emt 0:00:06]} Rxc3+ {[%emt 0:01:46]} 28. Nxc3 {[%emt 0:00:05]} Ke7 {[%emt 0:00:22]} 29. Nb5 {[%emt 0:01:45]} Ke6 {[%emt 0:01:05]} 30. Ke4 {[%emt 0:01:41]} f5+ {[%emt 0:02:16]} 31. Kf4 {[%emt 0:00:53]} Kf6 {[%emt 0:05:44]} 32. Nd6 {[%emt 0:01:23]} Nf8 {[%emt 0:01:43]} 33. Nxf5 {[%emt 0:01:48]} Ne6+ {[%emt 0:00:36]} 34. Kg4 {[%emt 0:00:25]} h5+ {[%emt 0:01:42]} 35. Kf3 {[%emt 0:02:54]} Kxf5 {[%emt 0:00:11]} 36. Ke3 {[%emt 0:00:58]} Nc7 {[%emt 0:00:50]} 37. Kd3 {[%emt 0:00:41]} b5 {[%emt 0:00:40]} 38. Kc3 {[%emt 0:00:47]} Ke4 {[%emt 0:00:20]} 39. f3+ {[%emt 0:01:15]} Ke3 {[%emt 0:00:42]} 40. h4 {[%emt 0:00:40]} f5 {[%emt 0:00:21]} 41. g4 {[%emt 0:30:37]} fxg4 {[%emt 0:31:26]} 42. fxg4 {[%emt 0:00:04]} hxg4 {[%emt 0:00:14]} 43. h5 {[%emt 0:00:04]} g3 {[%emt 0:00:11]} 44. h6 {[%emt 0:00:06]} Nd5+ {[%emt 0:00:10]} 45. Kb3 {[%emt 0:00:23]} Nf6 {[%emt 0:00:20]} 46. d5 {[%emt 0:00:55]} g2 {[%emt 0:00:18]} 0-1

[Event "Czech Youth U14 Girls 2024"]
[Site "Kouty nad Desnou"]
[Date "2024.03.11"]
[Round "4.5"]
[White "Strazhnyk, Viktoriia"]
[Black "Kubatova, Beta"]
[Result "0-1"]
[ECO "B12"]
[WhiteElo "1570"]
[BlackElo "1666"]
[Annotator "NA RC"]
[PlyCount "112"]
[EventDate "2024.03.10"]
[EventType "swiss"]
[EventCountry "CZE"]
[SourceTitle "playchess.com"]
[Source "ChessBase"]
[SourceQuality "1"]
[TimeControl "40/5400+30:1800+30"]

1. e4 {[%emt 0:00:02]} c6 {[%emt 0:00:10]} 2. d4 {[%emt 0:00:03]} d5 {[%emt 0:00:11]} 3. e5 {[%emt 0:00:05]} Bf5 {[%emt 0:00:19]} 4. Nf3 {[%emt 0:00:12]} e6 {[%emt 0:00:56]} 5. Be2 {[%emt 0:00:13]} Nd7 {[%emt 0:02:57]} 6. O-O {[%emt 0:00:09]} c5 {[%emt 0:03:22]} 7. c4 {[%emt 0:00:23]} Ne7 {[%emt 0:05:04]} 8. Bg5 {[%emt 0:04:39]} Bxb1 {[%emt 0:32:43]} 9. Rxb1 {[%emt 0:01:28]} Qc7 {[%emt 0:00:39]} 10. Qa4 {[%emt 0:08:04]} Nc6 {[%emt 0:06:17]} 11. Rbc1 {[%emt 0:05:18]} Be7 {[%emt 0:10:42]} 12. Bxe7 {[%emt 0:00:58]} Nxe7 {[%emt 0:00:09]} 13. cxd5 {[%emt 0:01:23]} Nxd5 {[%emt 0:01:08]} 14. Rxc5 {[%emt 0:00:48]} Qd8 {[%emt 0:06:38]} 15. Rcc1 {[%emt 0:08:26]} O-O {[%emt 0:01:24]} 16. Bd3 {[%emt 0:04:45]} h6 {[%emt 0:06:24]} 17. Nd2 {[%emt 0:04:29]} N7b6 {[%emt 0:03:49]} 18. Qb3 {[%emt 0:05:07]} Nf4 {[%emt 0:03:33]} 19. Ne4 {[%emt 0:01:58]} Qxd4 {[%emt 0:02:39]} 20. Nc5 {[%emt 0:07:26]} Qxe5 {[%emt 0:02:16]} 21. Nxb7 {[%emt 0:01:11]} Nxd3 {[%emt 0:01:10]} 22. Qxd3 {[%emt 0:00:57]} Qxb2 {[%emt 0:00:55]} 23. Rc2 {[%emt 0:01:14]} Qf6 {[%emt 0:01:09]} 24. Nc5 {[%emt 0:00:47]} Rfd8 {[%emt 0:00:55]} 25. Qg3 {[%emt 0:02:29]} Rac8 {[%emt 0:01:41]} 26. Ne4 {[%emt 0:03:03]} Qd4 {[%emt 0:01:26]} 27. Re2 {[%emt 0:16:15]} Nc4 {[%emt 0:02:05]} 28. Rfe1 {[%emt 0:07:47]} Rb8 {[%emt 0:01:29]} 29. Kf1 {[%emt 0:01:23]} Rb2 {[%emt 0:01:43]} 30. Nc3 {[%emt 0:02:36]} Rxe2 {[%emt 0:00:51]} 31. Nxe2 {[%emt 0:00:07]} Nd2+ {[%emt 0:00:19]} 32. Kg1 {[%emt 0:01:20]} Qb6 {[%emt 0:00:43]} 33. Nc3 {[%emt 0:02:13]} Nc4 {[%emt 0:00:35]} 34. Ne4 {[%emt 0:00:26]} Nd6 {[%emt 0:00:27]} 35. Nf6+ {[%emt 0:01:13]} Kh8 {[%emt 0:00:11]} 36. Nh5 {[%emt 0:00:03]} Nf5 {[%emt 0:00:14]} 37. Qe5 {[%emt 0:01:17]} Qd4 {[%emt 0:00:33]} 38. Qc7 {[%emt 0:02:15]} Qd1 {[%emt 0:01:06]} 39. Rf1 {[%emt 0:00:05]} Qd7 {[%emt 0:00:08]} 40. Qc3 {[%emt 0:00:47]} Nd4 {[%emt 0:00:47]} 41. Qh3 {[%emt 0:31:02]} Ne2+ {[%emt 0:30:25]} 42. Kh1 {[%emt 0:00:38]} Qd1 {[%emt 0:00:00]} 43. g4 Qd5+ {[%emt 0:00:00]} 44. f3 {[%emt 0:00:00]} Kg8 {[%emt 0:00:00]} 45. Re1 {[%emt 0:00:00]} Nc3 {[%emt 0:00:00]} 46. a3 {[%emt 0:00:00]} Rb8 {[%emt 0:00:00]} 47. Qg3 {[%emt 0:00:00]} Rd8 {[%emt 0:00:00]} 48. Rf1 {[%emt 0:00:00]} Qd6 {[%emt 0:00:00]} 49. Qf2 {[%emt 0:00:00]} g6 {[%emt 0:00:00]} 50. Qe3 {[%emt 0:00:00]} gxh5 {[%emt 0:00:00]} 51. gxh5 {[%emt 0:00:00]} Qd3 {[%emt 0:00:00]} 52. Rg1+ {[%emt 0:00:00]} Kh7 {[%emt 0:00:00]} 53. Qf4 {[%emt 0:04:49]} Qf5 {[%emt 0:00:00]} 54. Qxf5+ {[%emt 0:00:19]} exf5 {[%emt 0:00:00]} 55. Re1 {[%emt 0:00:17]} Kg7 {[%emt 0:01:04]} 56. Kg2 {[%emt 0:01:48]} Nd5 {[%emt 0:02:15]} 0-1

[Event "Czech Youth U14 Girls 2024"]
[Site "Kouty nad Desnou"]
[Date "2024.03.11"]
[Round "4.6"]
[White "Bouchalova, Kveta"]
[Black "Mojzisova, Barbora"]
[Result "1-0"]
[ECO "C50"]
[WhiteElo "1627"]
[BlackElo "1623"]
[Annotator "NA RC"]
[PlyCount "87"]
[EventDate "2024.03.10"]
[EventType "swiss"]
[EventCountry "CZE"]
[SourceTitle "playchess.com"]
[Source "ChessBase"]
[SourceQuality "1"]
[TimeControl "40/5400+30:1800+30"]

1. e4 {[%emt 0:00:02]} e5 {[%emt 0:00:11]} 2. Nf3 {[%emt 0:00:04]} Nc6 {[%emt 0:00:14]} 3. Bc4 {[%emt 0:00:04]} Bc5 {[%emt 0:00:24]} 4. d3 {[%emt 0:00:15]} d6 {[%emt 0:00:48]} 5. c3 {[%emt 0:01:11]} Nf6 {[%emt 0:02:04]} 6. O-O {[%emt 0:00:19]} O-O {[%emt 0:01:23]} 7. Nbd2 {[%emt 0:02:10]} Bg4 {[%emt 0:00:53]} 8. h3 {[%emt 0:01:45]} Be6 {[%emt 0:02:36]} 9. Re1 {[%emt 0:02:22]} Qd7 {[%emt 0:03:47]} 10. b4 {[%emt 0:12:10]} Bb6 {[%emt 0:00:39]} 11. Ng5 {[%emt 0:01:56]} h6 {[%emt 0:01:51]} 12. Nxe6 {[%emt 0:00:22]} fxe6 {[%emt 0:00:18]} 13. Nf3 {[%emt 0:02:57]} Rae8 {[%emt 0:02:51]} 14. a4 {[%emt 0:04:20]} a6 {[%emt 0:00:35]} 15. Bb2 {[%emt 0:06:22]} d5 {[%emt 0:02:19]} 16. Bb3 {[%emt 0:04:02]} Kh8 {[%emt 0:05:41]} 17. b5 {[%emt 0:04:28]} Na5 {[%emt 0:01:58]} 18. Nxe5 {[%emt 0:00:34]} Bxf2+ {[%emt 0:04:17]} 19. Kh1 {[%emt 0:02:20]} Qd6 {[%emt 0:01:36]} 20. Ng6+ {[%emt 0:01:32]} Kg8 {[%emt 0:00:36]} 21. e5 {[%emt 0:01:17]} Qd8 {[%emt 0:00:51]} 22. Rf1 {[%emt 0:18:23]} Bg3 {[%emt 0:02:28]} 23. Nxf8 {[%emt 0:05:52]} Nxb3 {[%emt 0:01:12]} 24. exf6 {[%emt 0:01:41]} Rxf8 {[%emt 0:00:46]} 25. Qxb3 {[%emt 0:00:41]} gxf6 {[%emt 0:01:37]} 26. Qd1 {[%emt 0:02:13]} Kh8 {[%emt 0:01:07]} 27. Qg4 {[%emt 0:00:47]} Rg8 {[%emt 0:01:28]} 28. Qxe6 {[%emt 0:00:42]} Bh4 {[%emt 0:00:54]} 29. c4 {[%emt 0:02:39]} d4 {[%emt 0:00:45]} 30. Qe4 {[%emt 0:00:31]} Qd6 {[%emt 0:01:32]} 31. Qxh4 {[%emt 0:03:02]} Kh7 {[%emt 0:00:52]} 32. Qe4+ {[%emt 0:01:00]} Rg6 {[%emt 0:00:52]} 33. Bxd4 {[%emt 0:00:50]} Qg3 {[%emt 0:00:24]} 34. Qf3 {[%emt 0:00:50]} Qd6 {[%emt 0:02:35]} 35. Bxf6 {[%emt 0:00:29]} Rg3 {[%emt 0:00:35]} 36. Qe4+ {[%emt 0:01:24]} Rg6 {[%emt 0:00:26]} 37. Qe7+ {[%emt 0:00:11]} Qxe7 {[%emt 0:00:11]} 38. Bxe7 {[%emt 0:00:03]} Rg7 {[%emt 0:00:14]} 39. Rae1 {[%emt 0:00:21]} Kg6 {[%emt 0:00:36]} 40. Rf6+ {[%emt 0:00:54]} Kh5 {[%emt 0:00:11]} 41. Re5+ {[%emt 0:31:02]} Kh4 {[%emt 0:30:14]} 42. Rf3+ {[%emt 0:00:52]} Rg5 {[%emt 0:00:23]} 43. Bxg5+ {[%emt 0:00:31]} hxg5 {[%emt 0:00:28]} 44. g4 {[%emt 0:01:05]} 1-0

[Event "Czech Youth U14 Girls 2024"]
[Site "Kouty nad Desnou"]
[Date "2024.03.11"]
[Round "4.7"]
[White "Barteckova, Nikol"]
[Black "Kubatova, Ema"]
[Result "0-1"]
[ECO "B12"]
[WhiteElo "1612"]
[BlackElo "1580"]
[Annotator "NA RC"]
[PlyCount "106"]
[EventDate "2024.03.10"]
[EventType "swiss"]
[EventCountry "CZE"]
[SourceTitle "playchess.com"]
[Source "ChessBase"]
[SourceQuality "1"]
[TimeControl "40/5400+30:1800+30"]

1. e4 {[%emt 0:00:04]} c6 {[%emt 0:00:11]} 2. d4 {[%emt 0:00:04]} d5 {[%emt 0:00:06]} 3. e5 {[%emt 0:00:06]} Bf5 {[%emt 0:00:09]} 4. Nf3 {[%emt 0:00:12]} e6 {[%emt 0:00:37]} 5. Be2 {[%emt 0:00:18]} Nd7 {[%emt 0:03:45]} 6. O-O {[%emt 0:04:12]} Ne7 {[%emt 0:02:04]} 7. a3 {[%emt 0:04:04]} c5 {[%emt 0:04:31]} 8. Be3 {[%emt 0:02:02]} Nc6 {[%emt 0:00:47]} 9. c4 {[%emt 0:07:26]} dxc4 {[%emt 0:15:58]} 10. Bxc4 {[%emt 0:00:40]} cxd4 {[%emt 0:03:33]} 11. Bxd4 {[%emt 0:02:42]} Nxd4 {[%emt 0:03:03]} 12. Nxd4 {[%emt 0:03:55]} Bxb1 {[%emt 0:19:50]} 13. Rxb1 {[%emt 0:00:33]} Nxe5 {[%emt 0:00:15]} 14. Bb5+ {[%emt 0:00:46]} Nd7 {[%emt 0:00:26]} 15. Qa4 {[%emt 0:00:32]} a6 {[%emt 0:01:01]} 16. Bxd7+ {[%emt 0:00:49]} Qxd7 {[%emt 0:00:12]} 17. Qxd7+ {[%emt 0:00:38]} Kxd7 {[%emt 0:00:09]} 18. Rbd1 {[%emt 0:00:22]} Ke7 {[%emt 0:01:15]} 19. Rfe1 {[%emt 0:00:35]} g6 {[%emt 0:02:01]} 20. f4 {[%emt 0:03:05]} Bg7 {[%emt 0:00:46]} 21. Kf2 {[%emt 0:04:36]} Rhd8 {[%emt 0:01:30]} 22. Ke3 {[%emt 0:03:40]} Rac8 {[%emt 0:04:53]} 23. Re2 {[%emt 0:02:07]} Rc4 {[%emt 0:02:05]} 24. Red2 {[%emt 0:02:16]} Bxd4+ {[%emt 0:02:15]} 25. Rxd4 {[%emt 0:00:30]} Rdxd4 {[%emt 0:01:43]} 26. Rxd4 {[%emt 0:00:10]} Rxd4 {[%emt 0:03:03]} 27. Kxd4 {[%emt 0:00:17]} Kd6 {[%emt 0:00:12]} 28. g3 {[%emt 0:01:46]} f6 {[%emt 0:08:40]} 29. b3 {[%emt 0:04:32]} b6 {[%emt 0:00:45]} 30. g4 {[%emt 0:01:26]} h5 {[%emt 0:03:34]} 31. h3 {[%emt 0:01:47]} hxg4 {[%emt 0:02:28]} 32. hxg4 {[%emt 0:00:12]} e5+ {[%emt 0:01:44]} 33. fxe5+ {[%emt 0:00:30]} fxe5+ {[%emt 0:00:09]} 34. Ke4 {[%emt 0:00:11]} Ke6 {[%emt 0:00:25]} 35. a4 {[%emt 0:01:18]} a5 {[%emt 0:00:22]} 36. Ke3 {[%emt 0:00:23]} Kd5 {[%emt 0:00:41]} 37. Kd3 {[%emt 0:00:07]} g5 {[%emt 0:00:49]} 38. Ke3 {[%emt 0:00:15]} e4 {[%emt 0:00:10]} 39. Ke2 {[%emt 0:00:18]} Kd4 {[%emt 0:00:14]} 40. Kd2 {[%emt 0:00:13]} e3+ {[%emt 0:00:27]} 41. Ke2 {[%emt 0:30:04]} Ke4 {[%emt 0:30:12]} 42. Ke1 {[%emt 0:00:07]} Kf3 {[%emt 0:00:24]} 43. Kf1 {[%emt 0:00:21]} Kxg4 {[%emt 0:00:07]} 44. Ke2 {[%emt 0:00:05]} Kg3 {[%emt 0:00:44]} 45. Kxe3 {[%emt 0:00:08]} g4 {[%emt 0:00:10]} 46. Ke4 {[%emt 0:01:08]} Kh2 {[%emt 0:00:53]} 47. Kd5 {[%emt 0:00:04]} g3 {[%emt 0:00:10]} 48. Kc6 {[%emt 0:00:05]} g2 {[%emt 0:00:03]} 49. Kxb6 {[%emt 0:00:11]} g1=Q+ {[%emt 0:00:09]} 50. Kxa5 {[%emt 0:00:49]} Qc5+ {[%emt 0:00:42]} 51. Ka6 {[%emt 0:00:08]} Qb4 {[%emt 0:01:24]} 52. a5 {[%emt 0:00:41]} Qb8 {[%emt 0:01:22]} 53. b4 {[%emt 0:00:14]} Qxb4 0-1

[Event "Czech Youth U14 Girls 2024"]
[Site "Kouty nad Desnou"]
[Date "2024.03.11"]
[Round "4.8"]
[White "Peskova, Sara"]
[Black "Krisicova, Neli"]
[Result "0-1"]
[ECO "C50"]
[WhiteElo "1481"]
[BlackElo "1556"]
[Annotator "NA RC"]
[PlyCount "54"]
[EventDate "2024.03.10"]
[EventType "swiss"]
[EventCountry "CZE"]
[SourceTitle "playchess.com"]
[Source "ChessBase"]
[SourceQuality "1"]
[TimeControl "40/5400+30:1800+30"]

1. e4 {[%emt 0:00:12]} e5 {[%emt 0:00:24]} 2. Nf3 {[%emt 0:00:07]} Nc6 {[%emt 0:00:18]} 3. Bc4 {[%emt 0:00:07]} Nf6 {[%emt 0:00:33]} 4. d3 {[%emt 0:00:10]} Bc5 {[%emt 0:01:16]} 5. c3 {[%emt 0:00:16]} d6 {[%emt 0:02:01]} 6. O-O {[%emt 0:00:23]} Be6 {[%emt 0:02:41]} 7. Bb3 {[%emt 0:06:34]} Bb6 {[%emt 0:04:41]} 8. Re1 {[%emt 0:01:24]} Qe7 {[%emt 0:06:14]} 9. Nbd2 {[%emt 0:03:39]} O-O-O {[%emt 0:02:37]} 10. Nf1 {[%emt 0:00:53]} Rhe8 {[%emt 0:07:02]} 11. Ng3 {[%emt 0:00:44]} Ng4 {[%emt 0:05:46]} 12. Be3 {[%emt 0:00:38]} Nxe3 {[%emt 0:00:20]} 13. fxe3 {[%emt 0:00:31]} d5 {[%emt 0:05:45]} 14. Ba4 {[%emt 0:03:55]} dxe4 {[%emt 0:06:10]} 15. Nxe5 {[%emt 0:01:49]} Nxe5 {[%emt 0:04:16]} 16. Bxe8 {[%emt 0:01:37]} Rxd3 {[%emt 0:00:20]} 17. Qh5 {[%emt 0:02:47]} Bg4 {[%emt 0:05:09]} 18. Bd7+ {[%emt 0:05:44]} Rxd7 {[%emt 0:09:34]} 19. Qxh7 {[%emt 0:00:57]} Nd3 {[%emt 0:03:23]} 20. Reb1 {[%emt 0:16:06]} Bxe3+ {[%emt 0:02:11]} 21. Kh1 {[%emt 0:02:07]} Nf2+ {[%emt 0:02:29]} 22. Kg1 {[%emt 0:01:01]} Qf6 {[%emt 0:02:07]} 23. h3 {[%emt 0:10:55]} Nxh3+ {[%emt 0:02:04]} 24. Kh2 {[%emt 0:00:21]} Bf4 {[%emt 0:03:18]} 25. gxh3 {[%emt 0:11:25]} Rd2+ {[%emt 0:01:17]} 26. Kg1 {[%emt 0:01:48]} Be3+ {[%emt 0:00:12]} 27. Kh1 {[%emt 0:00:22]} Bf3# {[%emt 0:00:03]} 0-1